[Event "Polish Youth G18 Championship 2023"]
[Site "Jastrzebia Gora"]
[Date "2023.03.19"]
[Round "9.13"]
[White "Trybus, Dominika"]
[Black "Samol, Julia"]
[Result "1-0"]
[ECO "B46"]
[WhiteElo "1543"]
[BlackElo "1374"]
[Annotator "NA RC COMBH"]
[PlyCount "113"]
[EventDate "2023.03.11"]
[EventType "swiss"]
[EventCountry "POL"]
[SourceTitle "playchess.com"]
[Source "ChessBase"]
[SourceQuality "1"]
[TimeControl "40/5400+30:1800+30"]

1. e4 {[%emt 0:00:02]} c5 {[%emt 0:00:04]} 2. Nf3 {[%emt 0:00:05]} e6 {[%emt 0:00:04]} 3. d4 {[%emt 0:00:04]} cxd4 {[%emt 0:00:06]} 4. Nxd4 {[%emt 0:00:05]} Nc6 {[%emt 0:00:08]} 5. Nc3 {[%emt 0:01:22]} a6 {[%emt 0:00:16]} 6. Be3 {[%emt 0:00:24]} Qc7 {[%emt 0:00:22]} 7. Qf3 {[%emt 0:04:27]} Nf6 {[%emt 0:06:14]} 8. O-O-O {[%emt 0:02:03]} d6 {[%emt 0:05:42]} 9. Be2 {[%emt 0:09:25]} Bd7 {[%emt 0:18:55]} 10. h3 {[%emt 0:13:46]} b5 {[%emt 0:02:50]} 11. g4 {[%emt 0:03:38]} b4 {[%emt 0:02:09]} 12. Nb1 {[%emt 0:10:18]} Rc8 {[%emt 0:22:21]} 13. Bd3 {[%emt 0:06:01]} Ne5 {[%emt 0:03:56]} 14. Qe2 {[%emt 0:02:14]} Nc4 {[%emt 0:02:40]} 15. g5 {[%emt 0:05:26]} Ng8 {[%emt 0:02:03]} 16. Nd2 {[%emt 0:06:20]} Nxd2 {[%emt 0:18:08]} 17. Rxd2 {[%emt 0:01:32]} a5 {[%emt 0:01:04]} 18. Rhd1 {[%emt 0:08:03]} Ne7 {[%emt 0:01:41]} 19. Nb5 {[%emt 0:00:26]} Bxb5 {[%emt 0:00:33]} 20. Bxb5+ {[%emt 0:00:09]} Nc6 {[%emt 0:00:13]} 21. f4 {[%emt 0:07:46]} Be7 {[%emt 0:02:49]} 22. f5 {[%emt 0:04:22]} O-O {[%emt 0:01:53]} 23. f6 {[%emt 0:03:00]} d5 {[%emt 0:03:03]} 24. fxe7 Nxe7 {[%emt 0:00:12]} 25. Ba4 {[%emt 0:03:21]} Qg3 {[%emt 0:02:39]} 26. Rg1 {[%emt 0:06:04]} Qxh3 {[%emt 0:00:47]} 27. Bf4 {[%emt 0:01:09]} Ng6 {[%emt 0:01:21]} 28. Bd6 {[%emt 0:01:06]} Rfd8 {[%emt 0:00:27]} 29. e5 {[%emt 0:00:55]} Qf5 {[%emt 0:00:46]} 30. Kb1 {[%emt 0:00:42]} Rc4 {[%emt 0:00:39]} 31. Qf2 {[%emt 0:00:55]} Rf4 {[%emt 0:00:25]} 32. Qb6 {[%emt 0:00:24]} Rc8 {[%emt 0:00:40]} 33. Qb7 {[%emt 0:00:38]} Rfc4 {[%emt 0:00:44]} 34. Bb3 {[%emt 0:00:32]} R4c6 {[%emt 0:00:17]} 35. Re2 {[%emt 0:00:33]} Qf3 {[%emt 0:00:47]} 36. Ree1 {[%emt 0:00:18]} Qf5 {[%emt 0:00:40]} 37. Ref1 {[%emt 0:00:37]} Nf4 {[%emt 0:00:15]} 38. Rf2 {[%emt 0:00:42]} Qg6 {[%emt 0:00:40]} 39. Rgf1 {[%emt 0:00:22]} d4 {[%emt 0:00:47]} 40. Rxf4 {[%emt 0:00:00]} Rxc2 {[%emt 0:00:00]} 41. Qxf7+ {[%emt 0:00:30]} Qxf7 {[%emt 0:01:20]} 42. Rxf7 {[%emt 0:00:05]} Rc1+ {[%emt 0:00:16]} 43. Rxc1 {[%emt 0:00:09]} Rxc1+ {[%emt 0:00:06]} 44. Kxc1 {[%emt 0:00:05]} Kxf7 {[%emt 0:00:03]} 45. Bc2 {[%emt 0:00:42]} h5 {[%emt 0:00:34]} 46. g6+ {[%emt 0:00:43]} Ke8 {[%emt 0:00:16]} 47. Kd2 {[%emt 0:00:39]} h4 {[%emt 0:00:06]} 48. Be4 {[%emt 0:01:08]} h3 {[%emt 0:00:26]} 49. Kd3 {[%emt 0:00:17]} b3 {[%emt 0:00:28]} 50. axb3 {[%emt 0:00:53]} h2 {[%emt 0:00:21]} 51. Kxd4 {[%emt 0:00:20]} a4 {[%emt 0:00:07]} 52. bxa4 {[%emt 0:00:12]} h1=Q {[%emt 0:00:22]} 53. Bxh1 {[%emt 0:00:06]} Kd7 {[%emt 0:00:05]} 54. a5 {[%emt 0:00:40]} Ke8 {[%emt 0:00:15]} 55. a6 {[%emt 0:00:11]} Kd8 {[%emt 0:00:09]} 56. a7 {[%emt 0:00:30]} Kd7 {[%emt 0:00:09]} 57. Kc5 {[%emt 0:00:25]} 1-0

[Event "Polish Youth G18 Championship 2023"]
[Site "Jastrzebia Gora"]
[Date "2023.03.19"]
[Round "9.14"]
[White "Labedz, Gabriela"]
[Black "Gornisiewicz, Natalia"]
[Result "1-0"]
[ECO "C00"]
[WhiteElo "1425"]
[BlackElo "1287"]
[Annotator "NA RC COMBH"]
[PlyCount "65"]
[EventDate "2023.03.11"]
[EventType "swiss"]
[EventCountry "POL"]
[SourceTitle "playchess.com"]
[Source "ChessBase"]
[SourceQuality "1"]
[TimeControl "40/5400+30:1800+30"]

1. e4 {[%emt 0:00:02]} e6 {[%emt 0:00:05]} 2. d4 {[%emt 0:00:09]} d5 {[%emt 0:00:09]} 3. Bd3 {[%emt 0:00:05]} dxe4 {[%emt 0:00:10]} 4. Bxe4 {[%emt 0:00:05]} Nf6 {[%emt 0:00:08]} 5. Bf3 {[%emt 0:00:05]} c5 {[%emt 0:01:24]} 6. Ne2 {[%emt 0:00:28]} Be7 {[%emt 0:00:40]} 7. O-O {[%emt 0:03:16]} O-O {[%emt 0:00:25]} 8. Be3 {[%emt 0:03:51]} Qc7 {[%emt 0:02:46]} 9. c4 {[%emt 0:06:29]} cxd4 {[%emt 0:03:44]} 10. Qxd4 {[%emt 0:00:35]} Nc6 {[%emt 0:00:30]} 11. Qc3 {[%emt 0:03:31]} Bd6 {[%emt 0:04:29]} 12. h3 {[%emt 0:09:05]} Ne5 {[%emt 0:02:09]} 13. Nd2 {[%emt 0:03:30]} Nxf3+ {[%emt 0:06:19]} 14. Nxf3 {[%emt 0:01:00]} b6 {[%emt 0:06:40]} 15. Rac1 {[%emt 0:14:05]} Bb7 {[%emt 0:04:34]} 16. Bd4 {[%emt 0:08:37]} Ne4 {[%emt 0:03:37]} 17. Qc2 {[%emt 0:07:03]} f5 {[%emt 0:11:38]} 18. b3 {[%emt 0:08:54]} e5 {[%emt 0:02:00]} 19. Bb2 {[%emt 0:02:18]} Rf6 {[%emt 0:03:31]} 20. Nc3 {[%emt 0:05:40]} Nxc3 {[%emt 0:02:15]} 21. Qxc3 {[%emt 0:01:22]} Qc6 {[%emt 0:06:00]} 22. Qd3 {[%emt 0:04:10]} Qc7 {[%emt 0:06:05]} 23. c5 {[%emt 0:06:48]} bxc5 {[%emt 0:01:47]} 24. Rfe1 {[%emt 0:01:49]} Re8 {[%emt 0:18:17]} 25. b4 {[%emt 0:01:51]} Bxf3 {[%emt 0:02:54]} 26. Qxf3 {[%emt 0:00:40]} Kh8 {[%emt 0:02:35]} 27. bxc5 {[%emt 0:01:10]} Bxc5 {[%emt 0:04:00]} 28. Qd5 {[%emt 0:01:35]} Rc6 {[%emt 0:01:30]} 29. Bxe5 {[%emt 0:04:31]} Qc8 {[%emt 0:01:29]} 30. Qf7 {[%emt 0:01:23]} Rxe5 {[%emt 0:03:06]} 31. Rxe5 {[%emt 0:00:14]} Bxf2+ {[%emt 0:00:32]} 32. Kh2 {[%emt 0:01:14]} Bg1+ {[%emt 0:00:28]} 33. Rxg1 {[%emt 0:00:15]} 1-0

[Event "Polish Youth G18 Championship 2023"]
[Site "Jastrzebia Gora"]
[Date "2023.03.19"]
[Round "9.15"]
[White "Kaznowska, Kinga"]
[Black "Czerwinska, Oliwia"]
[Result "1/2-1/2"]
[ECO "C50"]
[WhiteElo "1352"]
[BlackElo "1369"]
[Annotator "NA RC COMBH"]
[PlyCount "106"]
[EventDate "2023.03.11"]
[EventType "swiss"]
[EventCountry "POL"]
[SourceTitle "playchess.com"]
[Source "ChessBase"]
[SourceQuality "1"]
[TimeControl "40/5400+30:1800+30"]

1. e4 {[%emt 0:00:03]} e5 {[%emt 0:00:04]} 2. Nf3 {[%emt 0:00:04]} Nc6 {[%emt 0:00:06]} 3. Bc4 {[%emt 0:00:04]} Be7 {[%emt 0:00:11]} 4. d4 {[%emt 0:00:27]} exd4 {[%emt 0:00:10]} 5. Nxd4 {[%emt 0:00:05]} d6 {[%emt 0:00:25]} 6. Nc3 {[%emt 0:00:31]} Nf6 {[%emt 0:00:23]} 7. O-O {[%emt 0:02:31]} O-O {[%emt 0:02:02]} 8. Re1 {[%emt 0:00:38]} Ne5 {[%emt 0:00:31]} 9. Bb3 {[%emt 0:00:43]} c5 {[%emt 0:01:17]} 10. Nf3 {[%emt 0:01:58]} c4 {[%emt 0:02:18]} 11. Nxe5 {[%emt 0:00:54]} cxb3 {[%emt 0:00:11]} 12. Nf3 {[%emt 0:00:56]} bxa2 {[%emt 0:03:37]} 13. Rxa2 {[%emt 0:00:34]} Be6 {[%emt 0:02:28]} 14. b3 {[%emt 0:02:53]} a6 {[%emt 0:02:15]} 15. Bg5 {[%emt 0:00:50]} Ng4 {[%emt 0:08:52]} 16. Bxe7 {[%emt 0:01:00]} Qxe7 {[%emt 0:00:06]} 17. h3 {[%emt 0:00:21]} Ne5 {[%emt 0:01:21]} 18. Nxe5 {[%emt 0:02:10]} dxe5 {[%emt 0:00:07]} 19. Nd5 {[%emt 0:00:22]} Bxd5 {[%emt 0:02:26]} 20. exd5 {[%emt 0:00:18]} Qd6 {[%emt 0:00:48]} 21. c4 {[%emt 0:00:32]} Rfc8 {[%emt 0:05:07]} 22. Qa1 {[%emt 0:01:18]} f6 {[%emt 0:00:58]} 23. Rc1 {[%emt 0:00:34]} Rc7 {[%emt 0:02:49]} 24. Ra5 {[%emt 0:02:57]} Rac8 {[%emt 0:00:40]} 25. Qa2 {[%emt 0:00:52]} Qb4 {[%emt 0:00:56]} 26. Ra4 {[%emt 0:00:20]} Qd6 {[%emt 0:00:37]} 27. Ra1 {[%emt 0:11:07]} Kf7 {[%emt 0:02:09]} 28. Kf1 {[%emt 0:01:49]} Qc5 {[%emt 0:00:24]} 29. Qd2 {[%emt 0:03:21]} Qd6 {[%emt 0:01:29]} 30. Qb4 {[%emt 0:00:32]} Ke7 {[%emt 0:02:40]} 31. Ke2 {[%emt 0:00:45]} Kd7 {[%emt 0:05:00]} 32. Qxd6+ {[%emt 0:01:17]} Kxd6 {[%emt 0:00:08]} 33. Kd3 {[%emt 0:00:16]} Rc5 {[%emt 0:01:31]} 34. Rb4 {[%emt 0:00:27]} Kc7 {[%emt 0:03:32]} 35. Rba4 {[%emt 0:02:33]} Kd6 {[%emt 0:00:25]} 36. Ra5 {[%emt 0:00:25]} Rxa5 {[%emt 0:02:00]} 37. Rxa5 {[%emt 0:00:19]} Rc5 {[%emt 0:02:08]} 38. Ra4 {[%emt 0:00:38]} a5 {[%emt 0:00:59]} 39. b4 {[%emt 0:00:28]} axb4 {[%emt 0:00:07]} 40. Rxb4 {[%emt 0:00:00]} Kc7 {[%emt 0:00:00]} 41. d6+ {[%emt 0:02:57]} Kxd6 {[%emt 0:04:21]} 42. Rxb7 {[%emt 0:00:08]} Rc7 {[%emt 0:00:15]} 43. Rxc7 {[%emt 0:01:09]} Kxc7 {[%emt 0:00:05]} 44. Ke4 {[%emt 0:00:11]} Kc6 {[%emt 0:00:12]} 45. Kf5 {[%emt 0:00:07]} Kc5 {[%emt 0:00:17]} 46. Ke6 {[%emt 0:00:11]} Kxc4 {[%emt 0:00:11]} 47. Kf7 {[%emt 0:00:04]} Kd3 {[%emt 0:01:02]} 48. Kxg7 {[%emt 0:00:25]} e4 {[%emt 0:00:45]} 49. Kxf6 {[%emt 0:00:41]} Ke2 {[%emt 0:00:40]} 50. Kf5 {[%emt 0:00:12]} Kxf2 {[%emt 0:00:32]} 51. Kxe4 {[%emt 0:00:24]} Kxg2 {[%emt 0:00:08]} 52. Kf4 {[%emt 0:00:32]} Kxh3 {[%emt 0:00:37]} 53. Kg5 {[%emt 0:00:07]} Kg3 {[%emt 0:00:18]} 1/2-1/2

[Event "Polish Youth G18 Championship 2023"]
[Site "Jastrzebia Gora"]
[Date "2023.03.19"]
[Round "9.16"]
[White "Dallemura, Anna"]
[Black "Anyz, Monika"]
[Result "0-1"]
[ECO "B34"]
[WhiteElo "1496"]
[BlackElo "1755"]
[Annotator "NA RC COMBH"]
[PlyCount "78"]
[EventDate "2023.03.11"]
[EventType "swiss"]
[EventCountry "POL"]
[SourceTitle "playchess.com"]
[Source "ChessBase"]
[SourceQuality "1"]
[TimeControl "40/5400+30:1800+30"]

1. e4 {[%emt 0:00:01]} c5 {[%emt 0:00:04]} 2. Nf3 {[%emt 0:00:05]} Nc6 {[%emt 0:00:04]} 3. d4 {[%emt 0:00:06]} cxd4 {[%emt 0:00:04]} 4. Nxd4 {[%emt 0:00:07]} Nf6 {[%emt 0:00:04]} 5. Nc3 {[%emt 0:00:10]} e5 {[%emt 0:00:06]} 6. Ndb5 {[%emt 0:01:38]} d6 {[%emt 0:00:06]} 7. Na3 {[%emt 0:00:07]} Be6 {[%emt 0:00:57]} 8. Bc4 {[%emt 0:01:28]} Be7 {[%emt 0:02:47]} 9. O-O {[%emt 0:00:59]} O-O {[%emt 0:00:26]} 10. f3 {[%emt 0:00:51]} Nb4 {[%emt 0:13:17]} 11. Kh1 {[%emt 0:04:44]} d5 {[%emt 0:06:44]} 12. exd5 {[%emt 0:02:31]} Nbxd5 {[%emt 0:05:04]} 13. Nxd5 {[%emt 0:02:50]} Nxd5 {[%emt 0:04:13]} 14. Qe2 {[%emt 0:04:03]} Bxa3 {[%emt 0:10:06]} 15. bxa3 {[%emt 0:02:24]} Nc3 {[%emt 0:02:53]} 16. Qd3 {[%emt 0:01:22]} Qxd3 {[%emt 0:02:40]} 17. Bxd3 {[%emt 0:00:24]} f6 {[%emt 0:00:32]} 18. Bd2 {[%emt 0:02:02]} Rac8 {[%emt 0:00:58]} 19. Rfe1 {[%emt 0:02:04]} Bf7 {[%emt 0:03:08]} 20. Re3 {[%emt 0:03:10]} Nd5 {[%emt 0:02:50]} 21. Ree1 {[%emt 0:01:11]} Rfd8 {[%emt 0:01:39]} 22. Rab1 {[%emt 0:02:39]} b6 {[%emt 0:00:45]} 23. Rb2 {[%emt 0:02:01]} Nc3 {[%emt 0:02:51]} 24. Ra1 {[%emt 0:04:09]} Na4 {[%emt 0:02:17]} 25. Rbb1 {[%emt 0:06:11]} Nc5 {[%emt 0:01:48]} 26. Bf5 {[%emt 0:02:06]} Be6 {[%emt 0:00:45]} 27. Bxe6+ {[%emt 0:01:54]} Nxe6 {[%emt 0:00:09]} 28. Be3 {[%emt 0:01:19]} Rxc2 {[%emt 0:01:43]} 29. a4 {[%emt 0:02:08]} Rd3 {[%emt 0:01:21]} 30. Rb3 {[%emt 0:06:35]} Rxa2 {[%emt 0:02:15]} 31. Rxa2 {[%emt 0:00:05]} Rxb3 {[%emt 0:00:09]} 32. Bg1 {[%emt 0:00:07]} Kf7 {[%emt 0:01:07]} 33. a5 {[%emt 0:00:46]} Nd4 {[%emt 0:01:27]} 34. h3 {[%emt 0:02:43]} b5 {[%emt 0:00:25]} 35. Bf2 {[%emt 0:03:46]} Ke6 {[%emt 0:00:42]} 36. Ra1 {[%emt 0:00:40]} b4 {[%emt 0:00:37]} 37. Rc1 {[%emt 0:00:36]} Rc3 {[%emt 0:00:14]} 38. Rb1 {[%emt 0:01:38]} b3 {[%emt 0:00:15]} 39. Rb2 {[%emt 0:00:13]} Kd5 {[%emt 0:00:22]} 0-1

[Event "Polish Youth G18 Championship 2023"]
[Site "Jastrzebia Gora"]
[Date "2023.03.19"]
[Round "9.17"]
[White "Bychowska, Marta"]
[Black "Tittor, Weronika"]
[Result "1/2-1/2"]
[ECO "A80"]
[WhiteElo "1388"]
[BlackElo "1226"]
[Annotator "NA RC COMBH"]
[PlyCount "98"]
[EventDate "2023.03.11"]
[EventType "swiss"]
[EventCountry "POL"]
[SourceTitle "playchess.com"]
[Source "ChessBase"]
[SourceQuality "1"]
[TimeControl "40/5400+30:1800+30"]

1. d4 {[%emt 0:00:02]} f5 {[%emt 0:00:06]} 2. Nf3 {[%emt 0:00:42]} Nf6 {[%emt 0:02:29]} 3. c4 {[%emt 0:00:43]} e6 {[%emt 0:02:29]} 4. Nc3 {[%emt 0:00:32]} d5 {[%emt 0:02:36]} 5. cxd5 {[%emt 0:01:17]} exd5 {[%emt 0:02:29]} 6. Bg5 {[%emt 0:01:23]} Be7 {[%emt 0:02:27]} 7. e3 {[%emt 0:00:51]} Be6 {[%emt 0:02:42]} 8. Qb3 {[%emt 0:04:52]} b6 {[%emt 0:07:22]} 9. Ne5 {[%emt 0:01:33]} Qd6 {[%emt 0:03:21]} 10. Nb5 {[%emt 0:05:10]} Qb4+ {[%emt 0:00:47]} 11. Qxb4 {[%emt 0:00:10]} Bxb4+ {[%emt 0:00:08]} 12. Kd1 {[%emt 0:00:35]} Kd8 {[%emt 0:01:28]} 13. Rc1 {[%emt 0:01:54]} Bd6 {[%emt 0:07:40]} 14. Nxd6 {[%emt 0:03:03]} cxd6 {[%emt 0:00:09]} 15. Nd3 {[%emt 0:01:31]} Nbd7 {[%emt 0:02:38]} 16. Rc6 {[%emt 0:03:00]} Ke7 {[%emt 0:00:35]} 17. Nf4 {[%emt 0:00:44]} Rhc8 {[%emt 0:01:15]} 18. Bb5 {[%emt 0:01:53]} h6 {[%emt 0:02:56]} 19. Rxc8 {[%emt 0:01:19]} Rxc8 {[%emt 0:00:13]} 20. Bxd7 {[%emt 0:01:56]} Kxd7 {[%emt 0:00:33]} 21. Bxf6 {[%emt 0:00:20]} gxf6 {[%emt 0:00:14]} 22. Nxe6 {[%emt 0:00:08]} Kxe6 {[%emt 0:00:14]} 23. Kd2 {[%emt 0:00:12]} Rc7 {[%emt 0:00:22]} 24. f4 {[%emt 0:00:37]} Rg7 {[%emt 0:00:43]} 25. g3 {[%emt 0:00:21]} Rc7 {[%emt 0:00:10]} 26. Rc1 {[%emt 0:00:09]} Rxc1 {[%emt 0:00:11]} 27. Kxc1 {[%emt 0:00:05]} Kd7 {[%emt 0:00:16]} 28. Kc2 {[%emt 0:00:16]} Kc6 {[%emt 0:00:07]} 29. a4 {[%emt 0:00:27]} a5 {[%emt 0:00:13]} 30. Kc3 {[%emt 0:00:18]} b5 {[%emt 0:00:08]} 31. axb5+ {[%emt 0:00:59]} Kxb5 {[%emt 0:00:09]} 32. Kb3 {[%emt 0:00:17]} a4+ {[%emt 0:00:22]} 33. Ka3 {[%emt 0:00:20]} Ka5 {[%emt 0:00:23]} 34. h3 {[%emt 0:00:23]} Kb5 {[%emt 0:00:11]} 35. g4 {[%emt 0:00:23]} fxg4 {[%emt 0:00:13]} 36. hxg4 {[%emt 0:00:05]} Ka5 {[%emt 0:00:17]} 37. b3 {[%emt 0:05:24]} axb3 {[%emt 0:00:09]} 38. Kxb3 {[%emt 0:00:04]} Kb5 {[%emt 0:00:07]} 39. Kc3 {[%emt 0:00:12]} Kc6 {[%emt 0:00:26]} 40. Kd3 {[%emt 0:00:00]} Kd7 {[%emt 0:00:00]} 41. Ke2 {[%emt 0:01:59]} Ke7 {[%emt 0:01:12]} 42. Kf3 {[%emt 0:00:30]} Kf7 {[%emt 0:01:22]} 43. e4 {[%emt 0:01:20]} dxe4+ {[%emt 0:00:57]} 44. Kxe4 {[%emt 0:00:05]} Ke6 {[%emt 0:00:07]} 45. d5+ {[%emt 0:00:44]} Ke7 {[%emt 0:01:00]} 46. Kf5 {[%emt 0:01:35]} Kf7 {[%emt 0:03:24]} 47. g5 {[%emt 0:00:14]} hxg5 {[%emt 0:00:15]} 48. fxg5 {[%emt 0:00:05]} fxg5 {[%emt 0:00:14]} 49. Kxg5 {[%emt 0:00:04]} Kg7 {[%emt 0:00:15]} 1/2-1/2

[Event "Polish Youth G18 Championship 2023"]
[Site "Jastrzebia Gora"]
[Date "2023.03.19"]
[Round "9.18"]
[White "Nagly, Malgorzata"]
[Black "Sivickis, Kornelia"]
[Result "0-1"]
[ECO "E20"]
[WhiteElo "1041"]
[BlackElo "1328"]
[Annotator "NA RC COMBH"]
[PlyCount "118"]
[EventDate "2023.03.11"]
[EventType "swiss"]
[EventCountry "POL"]
[SourceTitle "playchess.com"]
[Source "ChessBase"]
[SourceQuality "1"]
[TimeControl "40/5400+30:1800+30"]

1. d4 {[%emt 0:00:01]} Nf6 {[%emt 0:00:06]} 2. c4 {[%emt 0:00:11]} e6 {[%emt 0:00:04]} 3. Nc3 {[%emt 0:01:26]} Bb4 {[%emt 0:00:05]} 4. Bd2 {[%emt 0:03:38]} b6 {[%emt 0:00:15]} 5. a3 {[%emt 0:03:54]} Bxc3 {[%emt 0:00:13]} 6. Bxc3 {[%emt 0:00:02]} Bb7 {[%emt 0:00:09]} 7. f3 {[%emt 0:03:36]} d5 {[%emt 0:00:25]} 8. e3 {[%emt 0:04:40]} Nbd7 {[%emt 0:00:31]} 9. cxd5 {[%emt 0:03:30]} Nxd5 {[%emt 0:00:35]} 10. e4 {[%emt 0:02:57]} Ne3 {[%emt 0:02:10]} 11. Qe2 {[%emt 0:03:07]} Nxf1 {[%emt 0:00:37]} 12. Qxf1 {[%emt 0:00:01]} c5 {[%emt 0:00:21]} 13. dxc5 {[%emt 0:05:57]} Nxc5 {[%emt 0:04:13]} 14. Bxg7 {[%emt 0:02:20]} Rg8 {[%emt 0:00:23]} 15. Bc3 {[%emt 0:01:24]} Ba6 {[%emt 0:01:15]} 16. Ne2 {[%emt 0:02:05]} Nd3+ {[%emt 0:00:45]} 17. Kd2 {[%emt 0:05:36]} Nf2+ {[%emt 0:00:27]} 18. Ke1 {[%emt 0:02:59]} Nxh1 {[%emt 0:00:19]} 19. Qxh1 {[%emt 0:00:03]} Qd3 {[%emt 0:01:17]} 20. Qf1 {[%emt 0:01:14]} Qxe2+ {[%emt 0:01:27]} 21. Qxe2 {[%emt 0:00:03]} Bxe2 {[%emt 0:00:09]} 22. Kxe2 {[%emt 0:00:14]} Rxg2+ {[%emt 0:00:03]} 23. Ke3 {[%emt 0:00:13]} Rxh2 {[%emt 0:01:50]} 24. Rg1 {[%emt 0:01:44]} Kd7 {[%emt 0:05:14]} 25. Rg7 {[%emt 0:01:51]} Rf8 {[%emt 0:01:18]} 26. Bb4 {[%emt 0:00:59]} Ke8 {[%emt 0:01:08]} 27. Bxf8 {[%emt 0:01:30]} Kxf8 {[%emt 0:00:10]} 28. Rg1 {[%emt 0:00:22]} Rxb2 {[%emt 0:00:10]} 29. Kf4 {[%emt 0:01:07]} Ra2 {[%emt 0:01:31]} 30. Rh1 {[%emt 0:00:50]} Rxa3 {[%emt 0:00:35]} 31. Rxh7 {[%emt 0:00:08]} Ke7 {[%emt 0:00:12]} 32. Rh8 {[%emt 0:01:20]} f6 {[%emt 0:03:27]} 33. Rh7+ {[%emt 0:01:38]} Kd6 {[%emt 0:00:22]} 34. Rh6 {[%emt 0:00:50]} e5+ {[%emt 0:00:57]} 35. Kg3 {[%emt 0:00:49]} Ke6 {[%emt 0:00:13]} 36. Kg4 {[%emt 0:02:15]} Kf7 {[%emt 0:02:18]} 37. Rh7+ {[%emt 0:00:54]} Kg6 {[%emt 0:00:59]} 38. Rc7 {[%emt 0:01:04]} b5 {[%emt 0:01:27]} 39. Rb7 {[%emt 0:00:35]} a6 {[%emt 0:00:28]} 40. Rb6 {[%emt 0:00:00]} Ra4 {[%emt 0:00:00]} 41. Kh4 {[%emt 0:01:08]} b4 {[%emt 0:00:39]} 42. Kg4 {[%emt 0:01:41]} a5 {[%emt 0:00:56]} 43. Kg3 {[%emt 0:02:59]} Ra3 {[%emt 0:00:19]} 44. Kf2 {[%emt 0:00:23]} b3 {[%emt 0:01:04]} 45. Ke1 {[%emt 0:01:09]} a4 {[%emt 0:00:11]} 46. Kd2 {[%emt 0:00:39]} Ra2+ {[%emt 0:01:30]} 47. Kc3 {[%emt 0:00:23]} b2 {[%emt 0:00:27]} 48. Kc2 {[%emt 0:01:15]} a3 {[%emt 0:00:31]} 49. Rb3 {[%emt 0:01:59]} Ra1 {[%emt 0:00:23]} 50. Rb6 {[%emt 0:01:39]} b1=Q+ {[%emt 0:00:20]} 51. Rxb1 {[%emt 0:00:11]} Rxb1 {[%emt 0:00:04]} 52. Kxb1 {[%emt 0:00:09]} Kg5 {[%emt 0:00:03]} 53. Ka2 {[%emt 0:00:11]} Kf4 {[%emt 0:00:05]} 54. Kxa3 {[%emt 0:00:10]} Kxf3 {[%emt 0:00:03]} 55. Kb2 {[%emt 0:00:17]} Kxe4 {[%emt 0:00:04]} 56. Kc1 {[%emt 0:00:12]} Kf3 {[%emt 0:00:11]} 57. Kd2 {[%emt 0:00:13]} Kf2 {[%emt 0:00:04]} 58. Kd3 {[%emt 0:00:15]} f5 {[%emt 0:00:12]} 59. Kd2 {[%emt 0:00:15]} e4 {[%emt 0:00:04]} 0-1

[Event "Polish Youth G18 Championship 2023"]
[Site "Jastrzebia Gora"]
[Date "2023.03.19"]
[Round "9.19"]
[White "Olszewska, Wiktoria"]
[Black "Pietruszka, Julia"]
[Result "1/2-1/2"]
[ECO "B00"]
[WhiteElo "1287"]
[BlackElo "1151"]
[Annotator "NA RC COMBH"]
[PlyCount "60"]
[EventDate "2023.03.11"]
[EventType "swiss"]
[EventCountry "POL"]
[SourceTitle "playchess.com"]
[Source "ChessBase"]
[SourceQuality "1"]
[TimeControl "40/5400+30:1800+30"]

1. e4 {[%emt 0:00:01]} Nc6 {[%emt 0:00:05]} 2. d4 {[%emt 0:01:46]} d5 {[%emt 0:00:05]} 3. e5 {[%emt 0:15:25]} e6 {[%emt 0:03:55]} 4. Nf3 {[%emt 0:09:01]} f6 {[%emt 0:03:46]} 5. exf6 {[%emt 0:03:25]} Nxf6 {[%emt 0:00:06]} 6. Bb5 {[%emt 0:02:30]} a6 {[%emt 0:01:25]} 7. Ba4 {[%emt 0:06:46]} b5 {[%emt 0:01:50]} 8. Bb3 {[%emt 0:00:17]} Bd6 {[%emt 0:02:25]} 9. O-O {[%emt 0:05:42]} O-O {[%emt 0:04:08]} 10. Re1 {[%emt 0:04:49]} Ne4 {[%emt 0:06:05]} 11. Nbd2 {[%emt 0:02:44]} Nxd2 {[%emt 0:17:09]} 12. Bxd2 {[%emt 0:01:25]} h6 {[%emt 0:02:01]} 13. c3 {[%emt 0:03:56]} Qf6 {[%emt 0:03:17]} 14. Qe2 {[%emt 0:08:18]} Na5 {[%emt 0:02:22]} 15. Bc2 {[%emt 0:01:28]} Nc4 {[%emt 0:00:40]} 16. b3 {[%emt 0:05:21]} Nxd2 {[%emt 0:01:19]} 17. Qxd2 {[%emt 0:00:46]} Bd7 {[%emt 0:03:34]} 18. Ne5 {[%emt 0:04:38]} Bxe5 {[%emt 0:01:39]} 19. Rxe5 {[%emt 0:03:34]} Qf4 {[%emt 0:01:48]} 20. Qxf4 {[%emt 0:03:48]} Rxf4 {[%emt 0:00:08]} 21. Rae1 {[%emt 0:00:45]} a5 {[%emt 0:03:38]} 22. Bd3 {[%emt 0:09:18]} b4 {[%emt 0:04:20]} 23. g3 {[%emt 0:03:34]} Rf3 {[%emt 0:04:18]} 24. R5e3 {[%emt 0:00:44]} Raf8 {[%emt 0:05:46]} 25. R1e2 {[%emt 0:01:22]} bxc3 {[%emt 0:00:35]} 26. Kg2 {[%emt 0:00:43]} Rxe3 {[%emt 0:01:04]} 27. Rxe3 {[%emt 0:00:15]} Rc8 {[%emt 0:01:06]} 28. Be2 {[%emt 0:01:33]} c5 {[%emt 0:00:54]} 29. Rxc3 {[%emt 0:00:23]} cxd4 {[%emt 0:00:32]} 30. Rxc8+ {[%emt 0:00:31]} Bxc8 {[%emt 0:00:04]} 1/2-1/2

[Event "Polish Youth G18 Championship 2023"]
[Site "Jastrzebia Gora"]
[Date "2023.03.19"]
[Round "9.20"]
[White "Bauer, Marika"]
[Black "Lopusiewicz, Marta"]
[Result "1-0"]
[ECO "B90"]
[WhiteElo "1183"]
[BlackElo "1180"]
[Annotator "NA RC COMBH"]
[PlyCount "51"]
[EventDate "2023.03.11"]
[EventType "swiss"]
[EventCountry "POL"]
[SourceTitle "playchess.com"]
[Source "ChessBase"]
[SourceQuality "1"]
[TimeControl "40/5400+30:1800+30"]

1. e4 {[%emt 0:00:02]} c5 {[%emt 0:00:03]} 2. Nf3 {[%emt 0:00:04]} d6 {[%emt 0:00:06]} 3. d4 {[%emt 0:00:04]} cxd4 {[%emt 0:00:04]} 4. Nxd4 {[%emt 0:00:06]} Nf6 {[%emt 0:00:02]} 5. Nc3 {[%emt 0:00:06]} a6 {[%emt 0:00:13]} 6. a4 {[%emt 0:00:49]} e5 {[%emt 0:00:20]} 7. Nb3 {[%emt 0:00:18]} Be7 {[%emt 0:00:24]} 8. Be3 {[%emt 0:00:34]} Be6 {[%emt 0:00:22]} 9. Be2 {[%emt 0:04:35]} Nbd7 {[%emt 0:00:33]} 10. h3 {[%emt 0:01:01]} h5 {[%emt 0:00:43]} 11. f4 {[%emt 0:02:59]} exf4 {[%emt 0:01:26]} 12. Bxf4 {[%emt 0:00:28]} Qc7 {[%emt 0:06:27]} 13. Nd5 {[%emt 0:03:38]} Nxd5 {[%emt 0:02:56]} 14. exd5 {[%emt 0:00:26]} Bf5 {[%emt 0:00:45]} 15. c3 {[%emt 0:01:17]} h4 {[%emt 0:09:09]} 16. Nd4 {[%emt 0:03:33]} Be4 {[%emt 0:03:59]} 17. Bf3 {[%emt 0:01:08]} Bxf3 {[%emt 0:04:53]} 18. Qxf3 {[%emt 0:00:40]} g6 {[%emt 0:14:39]} 19. O-O {[%emt 0:05:10]} Rc8 {[%emt 0:06:29]} 20. Bxd6 {[%emt 0:02:46]} Ne5 {[%emt 0:03:23]} 21. Bxe5 {[%emt 0:02:00]} Qxe5 {[%emt 0:00:06]} 22. Qxf7+ {[%emt 0:00:48]} Kd7 {[%emt 0:00:57]} 23. Rae1 {[%emt 0:01:19]} Qd6 {[%emt 0:00:36]} 24. Re6 {[%emt 0:00:27]} Qc5 {[%emt 0:01:54]} 25. b4 {[%emt 0:01:38]} Qxc3 26. Qxe7# {[%emt 0:00:09]} 1-0